[Event "Early-Titled-Tuesday-Blitz-May-07-2024"]
[Site "Chess.com"]
[Date "2024.05.07"]
[Round "9"]
[White "Happy1712Drummer"]
[Black "ahmedkandiliii"]
[Result "0-1"]
[WhiteElo "2516"]
[BlackElo "2648"]
[TimeControl "180+1"]
[EndTime "9:51:52 PDT"]
[Termination "ahmedkandiliii won by resignation"]

1. e4 {[%clk 0:03:00.9]} 1... e5 {[%clk 0:02:59.3]} 2. Nf3 {[%clk 0:03:00.3]}
2... Nc6 {[%clk 0:02:56.5]} 3. Nc3 {[%clk 0:03:00.8]} 3... Nf6 {[%clk
0:02:55.9]} 4. d4 {[%clk 0:03:01.1]} 4... exd4 {[%clk 0:02:55.5]} 5. Nd5 {[%clk
0:03:01.5]} 5... Nb4 {[%clk 0:02:50.8]} 6. Bd3 {[%clk 0:03:00.8]} 6... Nbxd5
{[%clk 0:02:46.4]} 7. exd5 {[%clk 0:03:01.7]} 7... Nxd5 {[%clk 0:02:46.4]} 8.
O-O {[%clk 0:02:57.4]} 8... Be7 {[%clk 0:02:43.7]} 9. Nxd4 {[%clk 0:02:52.4]}
9... O-O {[%clk 0:02:42.2]} 10. Qh5 {[%clk 0:02:15.9]} 10... Nf6 {[%clk
0:02:41.9]} 11. Qh4 {[%clk 0:02:14.3]} 11... d5 {[%clk 0:02:32.3]} 12. Bg5
{[%clk 0:02:12.7]} 12... h6 {[%clk 0:02:13.2]} 13. Bxh6 {[%clk 0:01:42.8]} 13...
Ne4 {[%clk 0:02:09.7]} 14. Qh5 {[%clk 0:01:12.7]} 14... gxh6 {[%clk 0:01:57.7]}
15. Rae1 {[%clk 0:00:56]} 15... Bc5 {[%clk 0:01:42]} 16. Nf3 {[%clk 0:00:44.5]}
16... Bd6 {[%clk 0:01:16.3]} 17. c3 {[%clk 0:00:40.9]} 17... c6 {[%clk
0:01:10.5]} 18. Qxh6 {[%clk 0:00:34.1]} 18... Qf6 {[%clk 0:01:07.3]} 19. Qh5
{[%clk 0:00:32.5]} 19... Qf5 {[%clk 0:00:37.7]} 20. Qh4 {[%clk 0:00:26.7]} 20...
Qg4 {[%clk 0:00:36.9]} 21. Qh6 {[%clk 0:00:23.7]} 21... Bf4 {[%clk 0:00:32.5]}
22. Rxe4 {[%clk 0:00:02.1]} 22... dxe4 {[%clk 0:00:31.3]} 23. Qf6 {[%clk
0:00:01.1]} 23... exf3 {[%clk 0:00:20.1]} 24. g3 {[%clk 0:00:01.6]} 24... Qh3
{[%clk 0:00:19.8]} 0-1

[Event "Early-Titled-Tuesday-Blitz-May-07-2024"]
[Site "Chess.com"]
[Date "2024.05.07"]
[Round "9"]
[White "djokovic74"]
[Black "toninhojit"]
[Result "0-1"]
[WhiteElo "2786"]
[BlackElo "2595"]
[TimeControl "180+1"]
[EndTime "9:51:53 PDT"]
[Termination "toninhojit won on time"]

1. e4 {[%clk 0:03:00.2]} 1... e5 {[%clk 0:02:58.6]} 2. Nf3 {[%clk 0:03:00.5]}
2... Nc6 {[%clk 0:02:59]} 3. Bb5 {[%clk 0:03:01.2]} 3... Nf6 {[%clk 0:02:59.4]}
4. d3 {[%clk 0:02:59.9]} 4... Bc5 {[%clk 0:02:58.5]} 5. O-O {[%clk 0:02:58.6]}
5... d6 {[%clk 0:02:58.2]} 6. c3 {[%clk 0:02:58.2]} 6... Bb6 {[%clk 0:02:53.8]}
7. Nbd2 {[%clk 0:02:48.8]} 7... O-O {[%clk 0:02:53.9]} 8. Re1 {[%clk 0:02:48.8]}
8... a6 {[%clk 0:02:44.8]} 9. Ba4 {[%clk 0:02:41.5]} 9... Ng4 {[%clk 0:02:43.4]}
10. Re2 {[%clk 0:02:37.5]} 10... f5 {[%clk 0:02:43.5]} 11. exf5 {[%clk
0:02:25.8]} 11... Bxf5 {[%clk 0:02:42.4]} 12. Nf1 {[%clk 0:02:00.2]} 12... Kh8
{[%clk 0:02:32.9]} 13. Ng3 {[%clk 0:01:46.1]} 13... Bd7 {[%clk 0:02:23.5]} 14.
h3 {[%clk 0:01:39.1]} 14... Rxf3 {[%clk 0:02:05.6]} 15. gxf3 {[%clk 0:01:31.7]}
15... Qh4 {[%clk 0:02:01.6]} 16. d4 {[%clk 0:01:14.9]} 16... exd4 {[%clk
0:01:39.3]} 17. fxg4 {[%clk 0:00:54.2]} 17... d3 {[%clk 0:01:29.4]} 18. Qxd3
{[%clk 0:00:40.1]} 18... Qxh3 {[%clk 0:01:18.8]} 19. Qf3 {[%clk 0:00:18.9]}
19... Bxg4 {[%clk 0:01:09.8]} 20. Qg2 {[%clk 0:00:13.8]} 20... Qh4 {[%clk
0:00:57]} 21. Re4 {[%clk 0:00:12.7]} 21... Ne5 {[%clk 0:00:57.7]} 22. Be3 {[%clk
0:00:08.7]} 22... Bxe3 {[%clk 0:00:49.4]} 23. fxe3 {[%clk 0:00:09.6]} 23... Qg5
{[%clk 0:00:47.3]} 24. Rf4 {[%clk 0:00:01.6]} 24... Nd3 {[%clk 0:00:34.1]} 25.
Raf1 {[%clk 0:00:01.5]} 25... Nxf4 {[%clk 0:00:27.7]} 0-1

[Event "Early-Titled-Tuesday-Blitz-May-07-2024"]
[Site "Chess.com"]
[Date "2024.05.07"]
[Round "9"]
[White "Zq1"]
[Black "kuchma777"]
[Result "1-0"]
[WhiteElo "2618"]
[BlackElo "2501"]
[TimeControl "180+1"]
[EndTime "9:51:53 PDT"]
[Termination "Zq1 won on time"]

1. d4 {[%clk 0:02:34]} 1... Nf6 {[%clk 0:02:55.9]} 2. c4 {[%clk 0:02:33.5]} 2...
e6 {[%clk 0:02:56.3]} 3. g3 {[%clk 0:02:33.1]} 3... d5 {[%clk 0:02:56.1]} 4. Bg2
{[%clk 0:02:33.2]} 4... dxc4 {[%clk 0:02:55.1]} 5. Nf3 {[%clk 0:02:32.9]} 5...
c5 {[%clk 0:02:55]} 6. O-O {[%clk 0:02:32.1]} 6... Be7 {[%clk 0:02:52.4]} 7.
dxc5 {[%clk 0:02:29.8]} 7... Nbd7 {[%clk 0:02:51.7]} 8. Na3 {[%clk 0:02:24.2]}
8... O-O {[%clk 0:02:49.4]} 9. Nxc4 {[%clk 0:02:23.6]} 9... Bxc5 {[%clk
0:02:49.4]} 10. Bf4 {[%clk 0:02:21.6]} 10... Nd5 {[%clk 0:02:46.3]} 11. Bd6
{[%clk 0:02:19.5]} 11... Bxd6 {[%clk 0:02:39.6]} 12. Nxd6 {[%clk 0:02:19.5]}
12... N7b6 {[%clk 0:02:39.4]} 13. Nxc8 {[%clk 0:02:13]} 13... Rxc8 {[%clk
0:02:37.6]} 14. Nd4 {[%clk 0:02:09.6]} 14... Qe7 {[%clk 0:02:25.6]} 15. Qb3
{[%clk 0:02:05.5]} 15... Rc5 {[%clk 0:01:29]} 16. Qa3 {[%clk 0:01:49.7]} 16...
Qf6 {[%clk 0:00:26.9]} 17. Qxc5 {[%clk 0:01:41.6]} 17... Rc8 {[%clk 0:00:25.5]}
18. Qa5 {[%clk 0:01:24.8]} 18... Qxd4 {[%clk 0:00:25.4]} 19. Qxa7 {[%clk
0:01:20.5]} 19... h6 {[%clk 0:00:19.8]} 20. Bxd5 {[%clk 0:01:12.4]} 20... exd5
{[%clk 0:00:17.9]} 21. Rad1 {[%clk 0:01:04]} 21... Qb4 {[%clk 0:00:17.7]} 22.
Qxb7 {[%clk 0:01:01]} 22... Rc2 {[%clk 0:00:17.3]} 23. Rfe1 {[%clk 0:00:52]}
23... Qxb2 {[%clk 0:00:17.4]} 24. Rb1 {[%clk 0:00:48.5]} 24... Qc3 {[%clk
0:00:11.6]} 25. Qxb6 {[%clk 0:00:45.5]} 25... d4 {[%clk 0:00:11.1]} 26. Qb4
{[%clk 0:00:41.4]} 26... Qc6 {[%clk 0:00:09.5]} 27. Qxd4 {[%clk 0:00:40.5]}
27... Rxa2 {[%clk 0:00:07.4]} 28. Rb8+ {[%clk 0:00:34.1]} 28... Kh7 {[%clk
0:00:07.5]} 29. Qd3+ {[%clk 0:00:33.6]} 29... g6 {[%clk 0:00:07.4]} 30. Qd4
{[%clk 0:00:32.1]} 30... f6 {[%clk 0:00:00.7]} 31. Rb6 {[%clk 0:00:30.6]} 1-0

[Event "Early-Titled-Tuesday-Blitz-May-07-2024"]
[Site "Chess.com"]
[Date "2024.05.07"]
[Round "9"]
[White "Nf3c5"]
[Black "Alexandr_Kholin"]
[Result "1-0"]
[WhiteElo "2601"]
[BlackElo "2490"]
[TimeControl "180+1"]
[EndTime "9:51:54 PDT"]
[Termination "Nf3c5 won on time"]

1. e4 {[%clk 0:02:54.9]} 1... e5 {[%clk 0:02:58.9]} 2. Nf3 {[%clk 0:02:53.6]}
2... Nc6 {[%clk 0:02:59.8]} 3. Nc3 {[%clk 0:02:52.9]} 3... Nf6 {[%clk
0:02:58.7]} 4. h3 {[%clk 0:02:53.4]} 4... Bb4 {[%clk 0:02:55.1]} 5. Nd5 {[%clk
0:02:51.3]} 5... Bc5 {[%clk 0:02:53.5]} 6. c3 {[%clk 0:02:50.7]} 6... Nxd5
{[%clk 0:02:42.2]} 7. exd5 {[%clk 0:02:50.3]} 7... Ne7 {[%clk 0:02:42.1]} 8.
Nxe5 {[%clk 0:01:51.2]} 8... Nxd5 {[%clk 0:02:39.3]} 9. Bc4 {[%clk 0:01:50.9]}
9... c6 {[%clk 0:02:16.7]} 10. d4 {[%clk 0:01:37.8]} 10... Be7 {[%clk
0:02:13.3]} 11. Bxd5 {[%clk 0:01:35.4]} 11... cxd5 {[%clk 0:02:11.9]} 12. Qf3
{[%clk 0:01:36]} 12... O-O {[%clk 0:02:03]} 13. Qxd5 {[%clk 0:01:31.4]} 13... d6
{[%clk 0:02:03]} 14. Nf3 {[%clk 0:01:31.7]} 14... Be6 {[%clk 0:02:02.4]} 15. Qh5
{[%clk 0:01:27.1]} 15... Bc4 {[%clk 0:01:53.1]} 16. b3 {[%clk 0:01:15.2]} 16...
Bd3 {[%clk 0:01:51.3]} 17. Be3 {[%clk 0:01:06.3]} 17... Rc8 {[%clk 0:01:49.5]}
18. Kd2 {[%clk 0:01:01.9]} 18... Bg6 {[%clk 0:01:47.8]} 19. Qb5 {[%clk
0:00:59.8]} 19... Be4 {[%clk 0:01:41.9]} 20. Ng5 {[%clk 0:00:36.5]} 20... a6
{[%clk 0:01:36]} 21. Qe2 {[%clk 0:00:08.6]} 1-0

[Event "Early-Titled-Tuesday-Blitz-May-07-2024"]
[Site "Chess.com"]
[Date "2024.05.07"]
[Round "9"]
[White "MokshAD1603"]
[Black "ImportedItalianMaple"]
[Result "1-0"]
[WhiteElo "2633"]
[BlackElo "2503"]
[TimeControl "180+1"]
[EndTime "9:51:55 PDT"]
[Termination "MokshAD1603 won by resignation"]

1. e4 {[%clk 0:03:00.9]} 1... g6 {[%clk 0:02:57.7]} 2. d4 {[%clk 0:03:00.2]}
2... Bg7 {[%clk 0:02:58.2]} 3. Nc3 {[%clk 0:02:59.3]} 3... d5 {[%clk 0:02:58.6]}
4. exd5 {[%clk 0:02:55.7]} 4... Nf6 {[%clk 0:02:59.1]} 5. Bb5+ {[%clk 0:02:50]}
5... Nbd7 {[%clk 0:02:58.4]} 6. Nge2 {[%clk 0:02:49.3]} 6... O-O {[%clk
0:02:57.7]} 7. Nf4 {[%clk 0:02:46.9]} 7... Nb6 {[%clk 0:02:56.8]} 8. O-O {[%clk
0:02:44.9]} 8... Nbxd5 {[%clk 0:02:55.1]} 9. Re1 {[%clk 0:02:44.6]} 9... Bg4
{[%clk 0:02:48.2]} 10. Qd3 {[%clk 0:02:35.6]} 10... Bf5 {[%clk 0:02:42.6]} 11.
Qe2 {[%clk 0:02:32.8]} 11... c6 {[%clk 0:02:31.4]} 12. Nfxd5 {[%clk 0:02:26.2]}
12... Nxd5 {[%clk 0:02:29.8]} 13. Bc4 {[%clk 0:02:25.7]} 13... Nb4 {[%clk
0:02:23.7]} 14. Bb3 {[%clk 0:02:04.3]} 14... Qxd4 {[%clk 0:02:23.2]} 15. Qxe7
{[%clk 0:02:01.7]} 15... Bxc2 {[%clk 0:01:59]} 16. Be3 {[%clk 0:01:51.5]} 16...
Nd5 {[%clk 0:00:57.2]} 17. Nxd5 {[%clk 0:01:44]} 17... Qxb2 {[%clk 0:00:56.5]}
18. Bxc2 {[%clk 0:01:42.4]} 18... cxd5 {[%clk 0:00:50.2]} 19. Rac1 {[%clk
0:01:40.7]} 19... Rfe8 {[%clk 0:00:49.2]} 20. Qd7 {[%clk 0:01:38.3]} 20... Qxa2
{[%clk 0:00:43.4]} 21. Bd3 {[%clk 0:01:26.5]} 21... a5 {[%clk 0:00:35.7]} 22.
Qxb7 {[%clk 0:01:25.7]} 22... a4 {[%clk 0:00:35.2]} 23. Bb1 {[%clk 0:01:11.1]}
23... Qb3 {[%clk 0:00:35.3]} 24. Qc6 {[%clk 0:01:01.4]} 24... a3 {[%clk
0:00:30.9]} 25. Qc2 {[%clk 0:00:54.9]} 25... Qb2 {[%clk 0:00:14.4]} 26. Ba2
{[%clk 0:00:52.7]} 26... Bf6 {[%clk 0:00:07.1]} 27. h3 {[%clk 0:00:50.1]} 27...
Rad8 {[%clk 0:00:05.4]} 28. Bd2 {[%clk 0:00:49.4]} 28... Kg7 {[%clk 0:00:05.5]}
29. Rxe8 {[%clk 0:00:48.2]} 29... Rxe8 {[%clk 0:00:06.4]} 30. Bxd5 {[%clk
0:00:47.5]} 30... Re2 {[%clk 0:00:06.2]} 31. Qc7 {[%clk 0:00:41.8]} 31... Rxd2
{[%clk 0:00:05.5]} 32. Qxf7+ {[%clk 0:00:41.7]} 32... Kh6 {[%clk 0:00:06.2]} 33.
Qf8+ {[%clk 0:00:40.2]} 33... Bg7 {[%clk 0:00:05.9]} 34. Qf4+ {[%clk 0:00:40.2]}
34... g5 {[%clk 0:00:06.7]} 35. Rc6+ {[%clk 0:00:34]} 35... Qf6 {[%clk
0:00:07.4]} 36. Rxf6+ {[%clk 0:00:33.9]} 1-0

[Event "Early-Titled-Tuesday-Blitz-May-07-2024"]
[Site "Chess.com"]
[Date "2024.05.07"]
[Round "9"]
[White "laysa_latifah"]
[Black "rhwr"]
[Result "1-0"]
[WhiteElo "2482"]
[BlackElo "2293"]
[TimeControl "180+1"]
[EndTime "9:51:56 PDT"]
[Termination "laysa_latifah won by resignation"]

1. e4 {[%clk 0:02:34.1]} 1... c5 {[%clk 0:02:59.1]} 2. Nf3 {[%clk 0:02:33.2]}
2... d6 {[%clk 0:02:58.5]} 3. c3 {[%clk 0:02:33.2]} 3... Nf6 {[%clk 0:02:55.8]}
4. h3 {[%clk 0:02:33.5]} 4... e6 {[%clk 0:02:55.4]} 5. Bd3 {[%clk 0:02:32.6]}
5... Be7 {[%clk 0:02:55]} 6. O-O {[%clk 0:02:32.4]} 6... O-O {[%clk 0:02:55.5]}
7. Bc2 {[%clk 0:02:33]} 7... Nc6 {[%clk 0:02:54.9]} 8. d4 {[%clk 0:02:33.7]}
8... cxd4 {[%clk 0:02:54.7]} 9. cxd4 {[%clk 0:02:34.6]} 9... d5 {[%clk
0:02:51.5]} 10. e5 {[%clk 0:02:31.5]} 10... Nd7 {[%clk 0:02:51.3]} 11. Nc3
{[%clk 0:02:31.4]} 11... f6 {[%clk 0:02:46.9]} 12. exf6 {[%clk 0:02:29.8]} 12...
Nxf6 {[%clk 0:02:46.8]} 13. Re1 {[%clk 0:02:29.9]} 13... a6 {[%clk 0:02:40.4]}
14. a3 {[%clk 0:02:22.1]} 14... Bd6 {[%clk 0:02:37]} 15. Ng5 {[%clk 0:02:18.9]}
15... e5 {[%clk 0:02:18.7]} 16. Nxd5 {[%clk 0:01:44]} 16... Nxd4 {[%clk
0:01:50.7]} 17. Nxf6+ {[%clk 0:01:40.5]} 17... Qxf6 {[%clk 0:01:36.5]} 18. Bxh7+
{[%clk 0:01:19.3]} 18... Kh8 {[%clk 0:01:36]} 19. Rf1 {[%clk 0:00:58.9]} 19...
Nf5 {[%clk 0:01:03]} 20. Ne4 {[%clk 0:00:55.5]} 20... Qe7 {[%clk 0:00:39.4]} 21.
Bxf5 {[%clk 0:00:47]} 21... Bxf5 {[%clk 0:00:38.3]} 22. Qxd6 {[%clk 0:00:46.8]}
22... Qh4 {[%clk 0:00:33.2]} 23. Ng3 {[%clk 0:00:41.3]} 23... Bh7 {[%clk
0:00:32.2]} 24. Qxe5 {[%clk 0:00:38.9]} 24... Rae8 {[%clk 0:00:31.7]} 25. Qg5
{[%clk 0:00:38.7]} 25... Qd4 {[%clk 0:00:24.1]} 26. Be3 {[%clk 0:00:35.2]} 26...
Qxb2 {[%clk 0:00:23.4]} 27. Rad1 {[%clk 0:00:33.3]} 27... Rf7 {[%clk 0:00:18.1]}
28. Rd8 {[%clk 0:00:30.4]} 28... Ref8 {[%clk 0:00:15.7]} 29. Bd4 {[%clk
0:00:27.3]} 29... Kg8 {[%clk 0:00:07]} 1-0

[Event "Early-Titled-Tuesday-Blitz-May-07-2024"]
[Site "Chess.com"]
[Date "2024.05.07"]
[Round "9"]
[White "KorolDimitriy75"]
[Black "JosefineHeinemann"]
[Result "1-0"]
[WhiteElo "2380"]
[BlackElo "2502"]
[TimeControl "180+1"]
[EndTime "9:51:57 PDT"]
[Termination "KorolDimitriy75 won by resignation"]

1. d4 {[%clk 0:03:00.9]} 1... Nf6 {[%clk 0:02:55.7]} 2. c4 {[%clk 0:03:00.9]}
2... g6 {[%clk 0:02:51.7]} 3. Nc3 {[%clk 0:03:01]} 3... d5 {[%clk 0:02:51.4]} 4.
cxd5 {[%clk 0:03:01.9]} 4... Nxd5 {[%clk 0:02:51.7]} 5. e4 {[%clk 0:03:02.8]}
5... Nxc3 {[%clk 0:02:52]} 6. bxc3 {[%clk 0:03:03.7]} 6... Bg7 {[%clk
0:02:52.5]} 7. Nf3 {[%clk 0:03:04.5]} 7... c5 {[%clk 0:02:52.6]} 8. Rb1 {[%clk
0:03:05.2]} 8... O-O {[%clk 0:02:46.9]} 9. Be2 {[%clk 0:03:04.9]} 9... cxd4
{[%clk 0:02:47.1]} 10. cxd4 {[%clk 0:03:05.8]} 10... Qa5+ {[%clk 0:02:46.9]} 11.
Qd2 {[%clk 0:03:06.1]} 11... Qxd2+ {[%clk 0:02:44.4]} 12. Bxd2 {[%clk 0:03:07]}
12... b6 {[%clk 0:02:40.5]} 13. O-O {[%clk 0:03:06.3]} 13... Bb7 {[%clk
0:02:35.9]} 14. d5 {[%clk 0:03:06.2]} 14... Nd7 {[%clk 0:02:35.6]} 15. Bb4
{[%clk 0:02:47.9]} 15... Rfe8 {[%clk 0:02:29.5]} 16. Bb5 {[%clk 0:02:45.3]}
16... Rad8 {[%clk 0:02:24.7]} 17. Rfc1 {[%clk 0:02:37.4]} 17... a6 {[%clk
0:02:22.6]} 18. Rc7 {[%clk 0:02:06.4]} 18... Bc8 {[%clk 0:02:22.2]} 19. Bc6
{[%clk 0:01:46.8]} 19... f5 {[%clk 0:01:17.2]} 20. Rxc8 {[%clk 0:01:27.7]} 20...
Rxc8 {[%clk 0:01:18.1]} 21. Bxd7 {[%clk 0:01:27.6]} 21... fxe4 {[%clk
0:01:18.4]} 22. Bxc8 {[%clk 0:01:10.7]} 22... Rxc8 {[%clk 0:01:08.5]} 23. Bxe7
{[%clk 0:00:26.3]} 23... Rc3 {[%clk 0:00:19.6]} 24. d6 {[%clk 0:00:21.9]} 24...
Rd3 {[%clk 0:00:19.9]} 25. Ng5 {[%clk 0:00:20.6]} 25... e3 {[%clk 0:00:11.8]}
26. fxe3 {[%clk 0:00:18.7]} 26... Bf8 {[%clk 0:00:09.1]} 27. Rxb6 {[%clk
0:00:15.8]} 27... Bxe7 {[%clk 0:00:07.3]} 28. dxe7 {[%clk 0:00:16.7]} 28... Rxe3
{[%clk 0:00:07]} 29. Rb8+ {[%clk 0:00:16.7]} 1-0

[Event "Early-Titled-Tuesday-Blitz-May-07-2024"]
[Site "Chess.com"]
[Date "2024.05.07"]
[Round "9"]
[White "maurovargas01"]
[Black "LamaChampetre"]
[Result "1-0"]
[WhiteElo "1978"]
[BlackElo "2182"]
[TimeControl "180+1"]
[EndTime "9:52:03 PDT"]
[Termination "maurovargas01 won by resignation"]

1. e4 {[%clk 0:02:55.5]} 1... c5 {[%clk 0:02:56.5]} 2. Nc3 {[%clk 0:02:54.1]}
2... Nc6 {[%clk 0:02:55]} 3. f4 {[%clk 0:02:55]} 3... g6 {[%clk 0:02:54.1]} 4.
Nf3 {[%clk 0:02:55.9]} 4... Bg7 {[%clk 0:02:54.8]} 5. d3 {[%clk 0:02:52.1]} 5...
Nd4 {[%clk 0:02:47.6]} 6. g3 {[%clk 0:02:48.4]} 6... d6 {[%clk 0:02:47.8]} 7.
Bg2 {[%clk 0:02:47.8]} 7... Nf6 {[%clk 0:02:45.4]} 8. O-O {[%clk 0:02:46.8]}
8... O-O {[%clk 0:02:45.3]} 9. Ne2 {[%clk 0:02:40.2]} 9... Nxf3+ {[%clk
0:02:34.4]} 10. Bxf3 {[%clk 0:02:41.1]} 10... Bh3 {[%clk 0:02:34.4]} 11. Rf2
{[%clk 0:02:36.5]} 11... Rb8 {[%clk 0:02:33.5]} 12. Kh1 {[%clk 0:02:28.4]} 12...
Ng4 {[%clk 0:02:32.6]} 13. Bxg4 {[%clk 0:02:23.2]} 13... Bxg4 {[%clk 0:02:33.5]}
14. Qe1 {[%clk 0:02:23.1]} 14... b5 {[%clk 0:02:28.3]} 15. Ng1 {[%clk
0:02:20.9]} 15... Qd7 {[%clk 0:02:17.4]} 16. Qf1 {[%clk 0:02:14.5]} 16... Bd4
{[%clk 0:02:10]} 17. Rd2 {[%clk 0:02:04.7]} 17... Qc6 {[%clk 0:01:59.1]} 18. h3
{[%clk 0:02:00.5]} 18... Bd7 {[%clk 0:01:48.5]} 19. Nf3 {[%clk 0:01:58.2]} 19...
Bg7 {[%clk 0:01:45.3]} 20. g4 {[%clk 0:01:57.4]} 20... c4 {[%clk 0:01:44.4]} 21.
Qe1 {[%clk 0:01:49.5]} 21... cxd3 {[%clk 0:01:42.5]} 22. cxd3 {[%clk 0:01:49]}
22... Rfc8 {[%clk 0:01:38.8]} 23. Qh4 {[%clk 0:01:46.8]} 23... h6 {[%clk
0:01:03.8]} 24. Qxe7 {[%clk 0:01:44.5]} 24... Re8 {[%clk 0:00:59.4]} 25. Qh4
{[%clk 0:01:39.9]} 25... b4 {[%clk 0:00:52.3]} 26. f5 {[%clk 0:01:23.7]} 26...
gxf5 {[%clk 0:00:46.7]} 27. gxf5 {[%clk 0:01:21.8]} 27... Bxf5 {[%clk
0:00:46.1]} 28. Rg2 {[%clk 0:00:52.8]} 28... Bg6 {[%clk 0:00:38.3]} 29. Bxh6
{[%clk 0:00:50.5]} 29... Bxh6 {[%clk 0:00:19]} 30. Qxh6 {[%clk 0:00:49.9]} 30...
d5 {[%clk 0:00:19.6]} 31. Rag1 {[%clk 0:00:39.3]} 31... Re6 {[%clk 0:00:16.8]}
32. Ng5 {[%clk 0:00:36]} 32... dxe4 {[%clk 0:00:13.6]} 33. Nxe6 {[%clk
0:00:33.4]} 33... Qxe6 {[%clk 0:00:09.3]} 34. Rxg6+ {[%clk 0:00:32.6]} 34...
fxg6 {[%clk 0:00:07.4]} 35. Rxg6+ {[%clk 0:00:32.5]} 35... Qxg6 {[%clk
0:00:07.7]} 36. Qxg6+ {[%clk 0:00:32.7]} 36... Kf8 {[%clk 0:00:08.2]} 37. Qd6+
{[%clk 0:00:32.6]} 1-0

[Event "Early-Titled-Tuesday-Blitz-May-07-2024"]
[Site "Chess.com"]
[Date "2024.05.07"]
[Round "9"]
[White "VirtualCoach"]
[Black "Gumugama"]
[Result "1-0"]
[WhiteElo "2154"]
[BlackElo "2249"]
[TimeControl "180+1"]
[EndTime "9:52:05 PDT"]
[Termination "VirtualCoach won on time"]

1. Nf3 {[%clk 0:03:00.9]} 1... Nf6 {[%clk 0:02:59.4]} 2. b3 {[%clk 0:03:00.1]}
2... g6 {[%clk 0:02:59.2]} 3. Bb2 {[%clk 0:02:59.8]} 3... Bg7 {[%clk 0:02:59.8]}
4. g3 {[%clk 0:02:59.6]} 4... O-O {[%clk 0:02:58.9]} 5. Bg2 {[%clk 0:02:59.7]}
5... d6 {[%clk 0:02:59.5]} 6. d4 {[%clk 0:02:55.9]} 6... Nbd7 {[%clk 0:02:42.5]}
7. O-O {[%clk 0:02:54.5]} 7... Rb8 {[%clk 0:02:37.1]} 8. c4 {[%clk 0:02:53]}
8... c5 {[%clk 0:02:35.9]} 9. Nc3 {[%clk 0:02:48.3]} 9... a6 {[%clk 0:02:34.4]}
10. e4 {[%clk 0:02:46.3]} 10... b5 {[%clk 0:02:09.2]} 11. cxb5 {[%clk
0:02:41.2]} 11... axb5 {[%clk 0:02:10.1]} 12. e5 {[%clk 0:02:31.4]} 12... Ne8
{[%clk 0:01:55.6]} 13. Ne4 {[%clk 0:02:16.2]} 13... Bb7 {[%clk 0:01:40.6]} 14.
Re1 {[%clk 0:02:10.2]} 14... Qc7 {[%clk 0:01:33]} 15. exd6 {[%clk 0:02:07.7]}
15... exd6 {[%clk 0:01:28.8]} 16. Rc1 {[%clk 0:02:02.7]} 16... c4 {[%clk
0:01:22.8]} 17. Qc2 {[%clk 0:01:31.9]} 17... d5 {[%clk 0:01:19.4]} 18. Ned2
{[%clk 0:01:31.1]} 18... Nd6 {[%clk 0:01:14.6]} 19. Ne5 {[%clk 0:01:29]} 19...
Nf5 {[%clk 0:00:59]} 20. Ndf3 {[%clk 0:01:19]} 20... Rfc8 {[%clk 0:00:56.5]} 21.
g4 {[%clk 0:01:12]} 21... Nd6 {[%clk 0:00:53.6]} 22. Qe2 {[%clk 0:01:02.6]}
22... Ne4 {[%clk 0:00:52.8]} 23. Qe3 {[%clk 0:01:00.3]} 23... Nxe5 {[%clk
0:00:44.2]} 24. Nxe5 {[%clk 0:00:51.8]} 24... Nf6 {[%clk 0:00:40.9]} 25. Qf4
{[%clk 0:00:43.1]} 25... Ra8 {[%clk 0:00:34.8]} 26. a3 {[%clk 0:00:37.7]} 26...
Qd6 {[%clk 0:00:31.6]} 27. g5 {[%clk 0:00:25.4]} 27... Nh5 {[%clk 0:00:06.2]}
28. Qxf7+ {[%clk 0:00:24.9]} 28... Kh8 {[%clk 0:00:06.6]} 29. Qxb7 {[%clk
0:00:22.9]} 29... Rf8 {[%clk 0:00:05.9]} 30. Nf7+ {[%clk 0:00:21.1]} 30... Rxf7
{[%clk 0:00:05.5]} 31. Qxf7 {[%clk 0:00:22]} 31... Rf8 {[%clk 0:00:05.6]} 32.
Re8 {[%clk 0:00:21.4]} 1-0